fUST/lending_fUST_20240902
["ID","MTS","AMOUNT","RATE_DAILY","PERIOD"]
[336942353,1725256244305,-500.0,0.00024657,2]
[336942354,1725256244315,-500.0,0.00024657,2]
[336942355,1725256244324,-500.0,0.00024657,2]
[336942356,1725256244334,-991.49,0.00024657,2]
[336942357,1725256244343,-6138.78,0.00024657,2]
[336942358,1725256244352,-961.23,0.00024657,2]
[336942359,1725256244361,-1557.39,0.00024657,2]
[336942360,1725256244371,-500.0,0.00024657,2]
[336942361,1725256244380,-500.0,0.00024657,2]
[336942362,1725256244389,-500.0,0.00024657,2]
[336942363,1725256244398,-935.32,0.00024657,2]
[336942364,1725256244407,-500.0,0.00024657,2]
[336942365,1725256244416,-500.0,0.00024657,2]
[336942366,1725256244425,-500.0,0.00024657,2]
[336942367,1725256244434,-500.0,0.00024657,2]
[336942368,1725256244443,-500.0,0.00024657,2]
[336942369,1725256244453,-526.35037879,0.00024657,2]
[336942370,1725256244462,-1028.57,0.00024657,2]
[336942371,1725256244472,-1028.57,0.00024657,2]
[336942372,1725256244482,-1028.57,0.00024657,2]
[336942373,1725256244491,-1028.57,0.00024657,2]
[336942374,1725256244500,-500.0,0.00024657,2]
[336942375,1725256244510,-500.0,0.00024657,2]
[336942376,1725256244521,-1028.57,0.00024657,2]
[336942377,1725256244534,-1028.57,0.00024657,2]
[336942378,1725256244543,-1028.57,0.00024657,2]
[336942379,1725256244554,-500.0,0.00024657,2]
[336942380,1725256244564,-1028.57,0.00024657,2]
[336942381,1725256244574,-1028.57,0.00024657,2]
[336942382,1725256244583,-500.0,0.00024657,2]
[336942383,1725256244593,-961.37,0.00024657,2]
[336942384,1725256244602,-500.0,0.00024657,2]
[336942385,1725256244611,-500.0,0.00024657,2]
[336942386,1725256244620,-1158.81,0.00024657,2]
[336942387,1725256244630,-500.0,0.00024657,2]
[336942388,1725256244640,-500.0,0.00024657,2]
[336942389,1725256244649,-500.0,0.00024657,2]
[336942390,1725256244658,-1337.41,0.00024657,2]
[336942391,1725256244667,-500.0,0.00024657,2]
[336942392,1725256244677,-500.0,0.00024657,2]
[336942393,1725256244686,-500.0,0.00024657,2]
[336942394,1725256244696,-972.09,0.00024657,2]
[336942395,1725256244705,-500.0,0.00024657,2]
[336942396,1725256244714,-500.0,0.00024657,2]
[336942397,1725256244723,-500.0,0.00024657,2]
[336942398,1725256244732,-228.39434148,0.00024657,2]
[336942399,1725256244742,-495.0,0.00024657,2]
[336942400,1725256244753,-500.0,0.00024657,2]
[336942401,1725256244765,-500.0,0.00024657,2]
[336942402,1725256244774,-500.0,0.00024657,2]
[336942403,1725256244786,-500.0,0.00024657,2]
[336942404,1725256244795,-500.0,0.00024657,2]
[336942405,1725256244804,-500.0,0.00024657,2]
[336942406,1725256244813,-166.197549,0.00024661,2]
[336942407,1725256244824,-500.0,0.00024673,2]
[336942408,1725256244834,-176.71261535,0.00024673,2]
[336942409,1725256244843,-158.73157232,0.00024831,2]
[336942410,1725256244853,-1412.88818904,0.00024831,2]
[336942411,1725256244864,-153.0,0.00024891,2]
[336942412,1725256244874,-153.0,0.00024891,2]
[336942413,1725256244884,-153.0,0.00024891,2]
[336942414,1725256244893,-153.0,0.00024891,2]
[336942415,1725256244902,-380.8,0.0002493,2]
[336942416,1725256244911,-500.0,0.0002493,2]
[336942417,1725256244920,-1028.57,0.0002493,2]
[336942418,1725256244929,-1028.57,0.0002493,2]
[336942419,1725256244938,-1028.57,0.0002493,2]
[336942420,1725256244947,-1028.57,0.0002493,2]
[336942421,1725256244957,-1028.57,0.0002493,2]
[336942422,1725256244967,-497.44548974,0.00024931,2]
[336942423,1725256244977,-500.0,0.00024931,2]
[336942424,1725256244986,-500.0,0.00024931,2]
[336942425,1725256245103,-502.87759677,0.00024931,2]
[336942426,1725256245126,-500.0,0.00024931,2]
[336942427,1725256245137,-500.0,0.00024931,2]
[336942428,1725256245147,-633.77385658,0.00024931,4]
[336942429,1725256245156,-558.91,0.00024931,2]
[336942430,1725256245166,-500.0,0.00024931,2]
[336942431,1725256245175,-500.0,0.00024931,2]
[336942432,1725256245184,-500.0,0.00024931,2]
[336942433,1725256245194,-500.0,0.00024931,2]
[336942434,1725256245203,-500.0,0.00024931,2]
[336942435,1725256245212,-504.95889577,0.00024931,2]
[336942436,1725256245221,-500.0,0.00024931,2]
[336942437,1725256245230,-505.12970038,0.00024931,2]
[336942438,1725256245239,-500.0,0.00024931,2]
[336942439,1725256245250,-500.0,0.00024931,2]
[336942440,1725256245259,-505.7863791,0.00024931,2]
[336942441,1725256245267,-500.0,0.00024931,2]
[336942442,1725256245277,-500.0,0.00024931,2]
[336942443,1725256245286,-500.0,0.00024931,2]
[336942444,1725256245295,-500.0,0.00024931,2]
[336942445,1725256245304,-500.0,0.00024931,2]
[336942446,1725256245313,-497.34361056,0.00024931,2]
[336942447,1725256245322,-334.16688174,0.00024931,2]
[336942448,1725256245331,-500.0,0.00024931,2]
[336942449,1725256245339,-500.0,0.00024931,2]
[336942450,1725256245348,-708.87,0.00024931,2]
[336942451,1725256245357,-500.0,0.00024931,2]
[336942452,1725256245367,-500.0,0.00024931,2]
[336942453,1725256245376,-504.57409693,0.00024931,2]
[336942454,1725256245385,-500.0,0.00024931,2]
[336942455,1725256245395,-501.70628553,0.00024931,2]
[336942456,1725256245404,-500.0,0.00024931,2]
[336942457,1725256245413,-511.19595774,0.00024931,2]
[336942458,1725256245422,-500.0,0.00024931,2]
[336942459,1725256245431,-500.0,0.00024931,2]
[336942460,1725256245440,-500.0,0.00024931,2]
[336942461,1725256245450,-554.32,0.00024931,2]
[336942462,1725256245459,-500.0,0.00024931,2]
[336942463,1725256245469,-500.0,0.00024931,2]
[336942464,1725256245478,-500.0,0.00024931,2]
[336942465,1725256245488,-500.0,0.00024931,2]
[336942466,1725256245497,-500.0,0.00024931,2]
[336942467,1725256245506,-500.0,0.00024931,2]
[336942468,1725256245516,-500.0,0.00024931,2]
[336942469,1725256245525,-500.0,0.00024931,2]
[336942470,1725256245536,-500.0,0.00024931,2]
[336942471,1725256245545,-500.0,0.00024931,2]
[336942472,1725256245554,-500.0,0.00024931,2]
[336942473,1725256245563,-292.39798448,0.00024931,2]
[336942474,1725256245572,-500.0,0.00024931,2]
[336942475,1725256245582,-500.0,0.00024931,2]
[336942476,1725256245591,-500.0,0.00024931,2]
[336942477,1725256245600,-500.0,0.00024931,2]
[336942478,1725256245609,-500.0,0.00024931,2]
[336942479,1725256245619,-500.0,0.00024931,2]
[336942480,1725256245628,-500.0,0.00024931,2]
[336942481,1725256245637,-500.0,0.00024931,2]
[336942482,1725256245646,-500.0,0.00024931,2]
[336942483,1725256245656,-500.0,0.00024931,2]
[336942484,1725256245665,-500.0,0.00024931,2]
[336942485,1725256245674,-500.0,0.00024931,2]
[336942486,1725256245683,-500.0,0.00024931,2]
[336942487,1725256245692,-598.96727796,0.00024931,2]
[336942488,1725256245701,-500.0,0.00024931,2]
[336942489,1725256245710,-574.36,0.00024931,2]
[336942490,1725256245719,-500.0,0.00024931,2]
[336942491,1725256245728,-500.0,0.00024931,2]
[336942492,1725256245737,-369.54532474,0.00024931,2]
[336942493,1725256245746,-502.8123865,0.00024931,2]
[336942494,1725256245755,-500.0,0.00024931,2]
[336942495,1725256245765,-651.28,0.00024931,2]
[336942496,1725256245775,-503.37539464,0.00024931,2]
[336942497,1725256245786,-500.0,0.00024931,2]
[336942498,1725256245795,-500.0,0.00024931,2]
[336942499,1725256245804,-500.0,0.00024931,2]
[336942500,1725256245815,-551.56,0.00024931,2]
[336942501,1725256245825,-500.0,0.00024931,2]
[336942502,1725256245837,-500.0,0.00024931,2]
[336942503,1725256245846,-502.6324954,0.00024931,2]
[336942504,1725256245856,-500.0,0.00024931,2]
[336942505,1725256245865,-500.0,0.00024931,2]
[336942506,1725256245875,-500.0,0.00024931,2]
[336942507,1725256245884,-500.0,0.00024931,2]
[336942508,1725256245893,-589.54,0.00024931,2]
[336942509,1725256245902,-500.0,0.00024931,2]
[336942510,1725256245912,-500.0,0.00024931,2]
[336942511,1725256245922,-500.0,0.00024931,2]
[336942512,1725256245931,-500.0,0.00024931,2]
[336942513,1725256245940,-500.0,0.00024931,2]
[336942514,1725256245949,-500.0,0.00024931,2]
[336942515,1725256245958,-500.0,0.00024931,2]
[336942516,1725256245967,-500.0,0.00024931,2]
[336942517,1725256245976,-500.0,0.00024931,2]
[336942518,1725256245985,-500.0,0.00024931,2]
[336942519,1725256245995,-505.22330456,0.00024931,2]
[336942520,1725256246004,-2941.62,0.00024931,2]
[336942521,1725256246013,-660.19,0.00024931,2]
[336942522,1725256246023,-500.0,0.00024931,2]
[336942523,1725256246034,-500.0,0.00024931,2]
[336942524,1725256246043,-507.61811917,0.00024931,2]
[336942525,1725256246052,-359.93565185,0.00024931,2]
[336942526,1725256246061,-500.0,0.00024931,2]
[336942527,1725256246070,-500.0,0.00024931,2]
[336942528,1725256246079,-500.0,0.00024931,2]
[336942529,1725256246089,-910.79,0.00024931,2]
[336942530,1725256246099,-500.0,0.00024931,2]
[336942531,1725256246107,-500.0,0.00024931,2]
[336942532,1725256246116,-500.0,0.00024931,2]
[336942533,1725256246126,-500.0,0.00024931,2]
[336942534,1725256246135,-500.0,0.00024931,2]
[336942535,1725256246144,-500.0,0.00024931,2]
[336942536,1725256246153,-500.0,0.00024931,2]
[336942537,1725256246162,-500.0,0.00024931,2]
[336942538,1725256246171,-500.0,0.00024931,2]
[336942539,1725256246180,-506.42,0.00024931,2]
[336942540,1725256246189,-500.0,0.00024931,2]
[336942541,1725256246198,-571.3525041,0.00024931,2]
[336942542,1725256246207,-500.0,0.00024931,2]
[336942543,1725256246216,-500.0,0.00024931,2]
[336942544,1725256246225,-500.0,0.00024931,2]
[336942545,1725256246234,-500.0,0.00024931,2]
[336942546,1725256246243,-500.0,0.00024931,2]
[336942547,1725256246252,-500.0,0.00024931,2]
[336942548,1725256246261,-500.0,0.00024931,2]
[336942549,1725256246270,-500.0,0.00024931,2]
[336942550,1725256246280,-500.0,0.00024931,2]
[336942551,1725256246289,-500.0,0.00024931,2]
[336942552,1725256246298,-503.8545373,0.00024931,2]
[336942553,1725256246307,-500.0,0.00024931,2]
[336942554,1725256246316,-500.0,0.00024931,2]
[336942555,1725256246326,-500.0,0.00024931,2]
[336942556,1725256246335,-500.0,0.00024931,2]
[336942557,1725256246344,-500.0,0.00024931,2]
[336942558,1725256246353,-500.0,0.00024931,2]
[336942559,1725256246366,-500.0,0.00024931,2]
[336942560,1725256246375,-629.95,0.00024931,2]
[336942561,1725256246385,-501.90515221,0.00024931,2]
[336942562,1725256246395,-543.95,0.00024931,2]
[336942563,1725256246405,-500.0,0.00024931,2]
[336942564,1725256246414,-503.63168444,0.00024931,2]
[336942565,1725256246423,-763.91,0.00024931,2]
[336942566,1725256246432,-508.45873812,0.00024931,2]
[336942567,1725256246441,-511.89508418,0.00024931,2]
[336942568,1725256246450,-500.0,0.00024931,2]
[336942569,1725256246459,-792.89,0.00024931,2]
[336942570,1725256246468,-500.0,0.00024931,2]
[336942571,1725256246478,-500.0,0.00024931,2]
[336942572,1725256246487,-500.0,0.00024931,2]
[336942573,1725256246497,-500.0,0.00024931,2]
[336942574,1725256246506,-288.97975478,0.00024931,2]
[336942575,1725256246515,-500.0,0.00024931,2]
[336942576,1725256246524,-151.0,0.00024931,7]
[336942577,1725256246543,-659.06,0.00024931,2]
[336942578,1725256246553,-500.0,0.00024931,2]
[336942579,1725256246562,-500.0,0.00024931,2]
[336942580,1725256246571,-500.0,0.00024931,2]
[336942581,1725256246580,-500.0,0.00024931,2]
[336942582,1725256246590,-658.56,0.00024931,2]
[336942583,1725256246599,-500.0,0.00024931,2]
[336942584,1725256246608,-500.0,0.00024931,2]
[336942585,1725256246617,-251.9642432,0.00024931,2]
[336942586,1725256246627,-500.0,0.00024931,2]
[336942587,1725256246636,-500.0,0.00024931,2]
[336942588,1725256246645,-500.0,0.00024931,2]
[336942589,1725256246655,-500.0,0.00024931,2]
[336942590,1725256246664,-509.71311402,0.00024931,2]
[336942591,1725256246673,-500.0,0.00024931,2]
[336942592,1725256246682,-568.88,0.00024931,2]
[336942593,1725256246692,-500.0,0.00024931,2]
[336942594,1725256246701,-500.0,0.00024931,2]
[336942595,1725256246710,-508.24120198,0.00024931,2]
[336942596,1725256246719,-490.90114801,0.00024931,2]
[336942597,1725256246728,-500.0,0.00024931,2]
[336942598,1725256246737,-156.00686,0.00024931,7]
[336942599,1725256246747,-1038.94,0.00024931,2]
[336942600,1725256246756,-500.0,0.00024931,2]
[336942601,1725256246765,-860.72,0.00024931,2]
[336942602,1725256246780,-156.00686,0.00024931,7]
[336942603,1725256246789,-500.0,0.00024931,2]
[336942604,1725256246799,-1895.72,0.00024931,2]
[336942605,1725256246808,-500.0,0.00024931,2]
[336942606,1725256246818,-1317.57,0.00024931,2]
[336942607,1725256246827,-500.0,0.00024931,2]
[336942608,1725256246837,-294.9579144,0.00024931,2]
[336942609,1725256246846,-500.0,0.00024931,2]
[336942610,1725256246857,-1334.51,0.00024931,2]
[336942611,1725256246867,-500.0,0.00024931,2]
[336942612,1725256246876,-500.0,0.00024931,2]
[336942613,1725256246885,-2203.75,0.00024931,2]
[336942614,1725256246894,-500.0,0.00024931,2]
[336942615,1725256246903,-500.0,0.00024931,2]
[336942616,1725256246913,-500.0,0.00024931,2]
[336942617,1725256246922,-500.0,0.00024931,2]
[336942618,1725256246931,-500.0,0.00024931,2]
[336942619,1725256246941,-500.0,0.00024931,2]
[336942620,1725256246950,-500.0,0.00024931,2]
[336942621,1725256246959,-500.0,0.00024931,2]
[336942622,1725256246968,-500.0,0.00024931,2]
[336942623,1725256246977,-1001.38,0.00024931,2]
[336942624,1725256246986,-560.24,0.00024931,2]
[336942625,1725256246995,-688.87,0.00024931,2]
[336942626,1725256247005,-500.0,0.00024931,2]
[336942627,1725256247014,-500.0,0.00024931,2]
[336942628,1725256247024,-500.0,0.00024931,2]
[336942629,1725256247034,-1555.18,0.00024931,2]
[336942630,1725256247043,-500.0,0.00024931,2]
[336942631,1725256247052,-8444.68,0.00024931,2]
[336942632,1725256247061,-550.82,0.00024931,2]
[336942633,1725256247070,-500.0,0.00024931,2]
[336942634,1725256247079,-500.0,0.00024931,2]
[336942635,1725256247089,-500.10295904,0.00024931,2]
[336942636,1725256247098,-625.24,0.00024931,2]
[336942637,1725256247107,-500.0,0.00024931,2]
[336942638,1725256247116,-1174.79,0.00024931,2]
[336942639,1725256247126,-500.0,0.00024931,2]
[336942640,1725256247134,-305.72984482,0.00024931,2]
[336942641,1725256247144,-200.0,0.00024931,2]
[336942642,1725256247153,-500.0,0.00024931,2]
[336942643,1725256247162,-500.0,0.00024931,2]
[336942644,1725256247171,-959.84,0.00024931,2]
[336942645,1725256247180,-1972.57,0.00024931,2]
[336942646,1725256247189,-781.64,0.00024931,2]
[336942647,1725256247198,-500.0,0.00024931,2]
[336942648,1725256247207,-500.0,0.00024931,2]
[336942649,1725256247216,-500.0,0.00024931,2]
[336942650,1725256247226,-303.5198211,0.00024931,2]
[336942651,1725256247234,-1027.13,0.00024931,2]
[336942652,1725256247243,-500.0,0.00024931,2]
[336942653,1725256247252,-530.59091496,0.00024931,2]
[336942654,1725256247262,-1193.68,0.00024931,2]
[336942655,1725256247271,-1041.71,0.00024931,2]
[336942656,1725256247281,-951.46,0.00024931,2]
[336942657,1725256247290,-500.0,0.00024931,2]
[336942658,1725256247299,-1372.18,0.00024931,2]
[336942659,1725256247308,-1262.6,0.00024931,2]
[336942660,1725256247317,-500.0,0.00024931,2]
[336942661,1725256247326,-733.81,0.00024931,2]
[336942662,1725256247335,-500.0,0.00024931,2]
[336942663,1725256247344,-500.0,0.00024931,2]
[336942664,1725256247353,-500.0,0.00024931,2]
[336942665,1725256247363,-500.0,0.00024931,2]
[336942666,1725256247373,-500.0,0.00024931,2]
[336942667,1725256247381,-1986.52,0.00024931,2]
[336942668,1725256247390,-1206.09,0.00024931,2]
[336942669,1725256247399,-500.0,0.00024931,2]
[336942670,1725256247408,-349.36606398,0.00024931,2]
[336942671,1725256247417,-3734.39,0.00024931,2]
[336942672,1725256247426,-1627.3,0.00024931,2]
[336942673,1725256247435,-823.88,0.00024931,2]
[336942674,1725256247444,-158.6546669,0.00024931,2]
[336942675,1725256248156,-118.50799762,0.00024657,2]
[336942678,1725256369747,171.082057,0.00014247,2]
[336942683,1725257021470,171.082057,0.00014247,2]
[336942684,1725257140832,-1245.1779186,0.0002346,2]
[336942685,1725257140854,-366.019597,0.00023655,2]
[336942686,1725257347612,-1226.49850833,0.00023363,2]
[336942687,1725257350300,-680.65819407,0.00023363,2]
[336942688,1725257355404,-164.745261,0.00023832,2]
[336942689,1725257355425,-317.32474,0.00023836,2]
[336942690,1725257355447,-164.745261,0.0002397,2]
[336942691,1725257355468,-164.745261,0.00024108,2]
[336942692,1725257382582,-164.745261,0.00024246,2]
[336942693,1725257382606,-39.03900346,0.0002425,3]
[336942700,1725257432324,-120.96099654,0.0002425,3]
[336942701,1725257432335,-568.59536592,0.0002425,7]
[336942734,1725257438439,-31.40463408,0.0002425,7]
[336942735,1725257438449,-164.745261,0.00024384,2]
[336942736,1725257438458,-350.0,0.000244,2]
[336942737,1725257438468,-600.0,0.00024449,7]
[336942738,1725257438478,-600.0,0.00024449,7]
[336942739,1725257438487,-600.0,0.00024449,7]
[336942740,1725257438497,-164.745261,0.00024522,2]
[336942741,1725257438507,-300.0,0.00024556,2]
[336942742,1725257438517,-582.21040092,0.00024557,2]
[336942743,1725257438526,-1031.13292338,0.00024557,2]
[336942744,1725257438536,-815.17,0.00024647,3]
[336942745,1725257438546,-407.58,0.00024647,3]
[336942746,1725257438556,-203.79,0.00024647,3]
[336942747,1725257438565,-611.4,0.00024647,3]
[336942748,1725257438575,-1265.11503679,0.00024657,11]
[336942749,1725257438585,-500.0,0.00024657,2]
[336942750,1725257438594,-500.0,0.00024657,2]
[336942751,1725257438604,-500.0,0.00024657,2]
[336942752,1725257438613,-497.44548974,0.00024657,2]
[336942753,1725257438624,-531.23,0.00024657,2]
[336942754,1725257438636,-500.0,0.00024657,2]
[336942755,1725257438645,-500.0,0.00024657,2]
[336942756,1725257438656,-500.0,0.00024657,2]
[336942757,1725257438667,-292.39798448,0.00024657,2]
[336942758,1725257438677,-500.0,0.00024657,2]
[336942759,1725257438689,-500.0,0.00024657,2]
[336942760,1725257438699,-500.0,0.00024657,2]
[336942761,1725257438708,-500.0,0.00024657,2]
[336942762,1725257438718,-500.0,0.00024657,2]
[336942763,1725257438727,-500.0,0.00024657,2]
[336942764,1725257438736,-500.0,0.00024657,2]
[336942765,1725257438747,-500.0,0.00024657,2]
[336942766,1725257438758,-500.0,0.00024657,2]
[336942767,1725257438768,-500.0,0.00024657,2]
[336942768,1725257438778,-598.96727796,0.00024657,2]
[336942769,1725257438787,-502.6324954,0.00024657,2]
[336942770,1725257438797,-500.0,0.00024657,2]
[336942771,1725257438806,-500.0,0.00024657,2]
[336942772,1725257438815,-500.0,0.00024657,2]
[336942773,1725257438826,-369.54532474,0.00024657,2]
[336942774,1725257438835,-500.0,0.00024657,2]
[336942775,1725257438847,-500.0,0.00024657,2]
[336942776,1725257438857,-500.0,0.00024657,2]
[336942777,1725257438867,-500.0,0.00024657,2]
[336942778,1725257438876,-500.0,0.00024657,2]
[336942779,1725257438885,-500.0,0.00024657,2]
[336942780,1725257438895,-505.22330456,0.00024657,2]
[336942781,1725257438904,-500.0,0.00024657,2]
[336942782,1725257438914,-500.0,0.00024657,2]
[336942783,1725257438924,-500.0,0.00024657,2]
[336942784,1725257438934,-208.2996,0.00024657,2]
[336942785,1725257438944,-500.0,0.00024657,2]
[336942786,1725257438953,-500.0,0.00024657,2]
[336942787,1725257438962,-500.0,0.00024657,2]
[336942788,1725257438971,-500.0,0.00024657,2]
[336942789,1725257438981,-500.0,0.00024657,2]
[336942790,1725257438990,-500.0,0.00024657,2]
[336942791,1725257438999,-500.0,0.00024657,2]
[336942792,1725257439009,-500.0,0.00024657,2]
[336942793,1725257439018,-497.34361056,0.00024657,2]
[336942794,1725257439028,-571.3525041,0.00024657,2]
[336942795,1725257439038,-500.0,0.00024657,2]
[336942796,1725257439047,-500.0,0.00024657,2]
[336942797,1725257439056,-500.0,0.00024657,2]
[336942798,1725257439066,-500.0,0.00024657,2]
[336942799,1725257439075,-503.8545373,0.00024657,2]
[336942800,1725257439085,-259.10014053,0.00024657,2]
[336942801,1725257439094,-500.0,0.00024657,2]
[336942802,1725257439103,-500.0,0.00024657,2]
[336942803,1725257439113,-500.0,0.00024657,2]
[336942804,1725257439122,-630.82,0.00024657,2]
[336942805,1725257439132,-500.0,0.00024657,2]
[336942806,1725257439142,-500.0,0.00024657,2]
[336942807,1725257439152,-500.0,0.00024657,2]
[336942808,1725257439161,-500.0,0.00024657,2]
[336942809,1725257439176,-500.0,0.00024657,2]
[336942810,1725257439190,-500.0,0.00024657,2]
[336942811,1725257439199,-500.0,0.00024657,2]
[336942812,1725257439209,-500.0,0.00024657,2]
[336942813,1725257439218,-500.0,0.00024657,2]
[336942814,1725257439227,-500.0,0.00024657,2]
[336942815,1725257439237,-500.0,0.00024657,2]
[336942816,1725257439249,-508.45873812,0.00024657,2]
[336942817,1725257439258,-500.0,0.00024657,2]
[336942818,1725257439267,-500.0,0.00024657,2]
[336942819,1725257439277,-509.71311402,0.00024657,2]
[336942820,1725257439287,-500.0,0.00024657,2]
[336942821,1725257439296,-508.0095841,0.00024657,2]
[336942822,1725257439306,-501.53643517,0.00024657,2]
[336942823,1725257439315,-500.0,0.00024657,2]
[336942824,1725257439324,-500.0,0.00024657,2]
[336942825,1725257439334,-500.0,0.00024657,2]
[336942826,1725257439345,-500.0,0.00024657,2]
[336942827,1725257439355,-500.0,0.00024657,2]
[336942828,1725257439363,-500.0,0.00024657,2]
[336942829,1725257439372,-500.0,0.00024657,2]
[336942830,1725257439382,-500.0,0.00024657,2]
[336942831,1725257439391,-500.0,0.00024657,2]
[336942832,1725257439400,-500.0,0.00024657,2]
[336942833,1725257439409,-505.85920782,0.00024657,2]
[336942834,1725257439418,-500.0,0.00024657,2]
[336942835,1725257439429,-500.0,0.00024657,2]
[336942836,1725257439438,-500.0,0.00024657,2]
[336942837,1725257439447,-500.0,0.00024657,2]
[336942838,1725257439457,-500.0,0.00024657,2]
[336942839,1725257439466,-500.0,0.00024657,2]
[336942840,1725257439475,-500.0,0.00024657,2]
[336942841,1725257439484,-500.0,0.00024657,2]
[336942842,1725257439493,-500.0,0.00024657,2]
[336942843,1725257439503,-500.0,0.00024657,2]
[336942844,1725257439512,-500.0,0.00024657,2]
[336942845,1725257439521,-500.0,0.00024657,2]
[336942846,1725257439534,-500.0,0.00024657,2]
[336942847,1725257439546,-500.0,0.00024657,2]
[336942848,1725257439555,-500.0,0.00024657,2]
[336942849,1725257439565,-560.24,0.00024657,2]
[336942850,1725257439575,-500.0,0.00024657,2]
[336942851,1725257439584,-500.0,0.00024657,2]
[336942852,1725257439594,-500.0,0.00024657,2]
[336942853,1725257439604,-471.29509957,0.00024657,2]
[336942854,1725257439613,-500.0,0.00024657,2]
[336942855,1725257439623,-500.0,0.00024657,2]
[336942856,1725257439635,-500.0,0.00024657,2]
[336942857,1725257439647,-500.0,0.00024657,2]
[336942858,1725257439657,-500.0,0.00024657,2]
[336942859,1725257439667,-500.0,0.00024657,2]
[336942860,1725257439679,-500.0,0.00024657,2]
[336942861,1725257439689,-500.0,0.00024657,2]
[336942862,1725257439698,-502.38212941,0.00024657,2]
[336942863,1725257439707,-500.0,0.00024657,2]
[336942864,1725257439717,-500.0,0.00024657,2]
[336942865,1725257439726,-500.0,0.00024657,2]
[336942866,1725257439736,-500.0,0.00024657,2]
[336942868,1725257439745,-594.28,0.00024657,2]
[336942869,1725257439755,-500.0,0.00024657,2]
[336942870,1725257439764,-573.37,0.00024657,2]
[336942871,1725257439775,-500.0,0.00024657,2]
[336942872,1725257439784,-500.0,0.00024657,2]
[336942873,1725257439794,-500.0,0.00024657,2]
[336942874,1725257439805,-502.656473,0.00024657,2]
[336942875,1725257439816,-504.20453368,0.00024657,2]
[336942876,1725257439828,-500.0,0.00024657,2]
[336942877,1725257439839,-500.0,0.00024657,2]
[336942879,1725257439850,-500.0,0.00024657,2]
[336942881,1725257439860,-503.37539464,0.00024657,2]
[336942883,1725257439870,-500.0,0.00024657,2]
[336942886,1725257439882,-500.0,0.00024657,2]
[336942887,1725257439891,-500.0,0.00024657,2]
[336942888,1725257439900,-500.0,0.00024657,2]
[336942889,1725257439910,-500.0,0.00024657,2]
[336942890,1725257439919,-500.0,0.00024657,2]
[336942891,1725257439930,-500.0,0.00024657,2]
[336942892,1725257439940,-500.0,0.00024657,2]
[336942893,1725257439950,-653.75,0.00024657,2]
[336942894,1725257439960,-500.0,0.00024657,2]
[336942895,1725257439970,-500.0,0.00024657,2]
[336942896,1725257439979,-500.0,0.00024657,2]
[336942897,1725257439989,-500.0,0.00024657,2]
[336942899,1725257439998,-500.0,0.00024657,2]
[336942901,1725257440007,-500.0,0.00024657,2]
[336942902,1725257440016,-269.54490414,0.00024657,2]
[336942904,1725257440025,-511.83,0.00024657,2]
[336942905,1725257440034,-500.0,0.00024657,2]